fUST/lending_fUST_20241112
["ID","MTS","AMOUNT","RATE_DAILY","PERIOD"]
[341991289,1731346053049,-556.5685935,0.00021917,2]
[341991290,1731346053070,-500.0,0.00021917,2]
[341991291,1731346053095,-500.0,0.00021917,2]
[341991292,1731346053120,-500.0,0.00021917,2]
[341991293,1731346053143,-500.0,0.00021917,2]
[341991294,1731346053166,-500.0,0.00021917,2]
[341991295,1731346053189,-500.0,0.00021917,2]
[341991296,1731346053211,-500.0,0.00021917,2]
[341991297,1731346053233,-500.0,0.00021917,2]
[341991298,1731346053255,-500.0,0.00021917,2]
[341991299,1731346053276,-500.00840385,0.00021917,2]
[341991300,1731346053298,-500.0,0.00021917,2]
[341991301,1731346053320,-500.0,0.00021917,2]
[341991302,1731346053341,-500.0,0.00021917,2]
[341991303,1731346053362,-500.0,0.00021917,2]
[341991304,1731346053385,-500.0,0.00021917,2]
[341991305,1731346053407,-610.042656,0.00021917,2]
[341991306,1731346053428,-500.0,0.00021917,2]
[341991307,1731346053450,-1345.62,0.00021917,2]
[341991308,1731346053472,-500.0,0.00021917,2]
[341991309,1731346053494,-500.0,0.00021917,2]
[341991310,1731346053516,-514.34053155,0.00021917,2]
[341991311,1731346053542,-500.0,0.00021917,2]
[341991312,1731346053567,-500.0,0.00021917,2]
[341991313,1731346053591,-500.0,0.00021917,2]
[341991314,1731346053615,-500.0,0.00021917,2]
[341991315,1731346053639,-500.0,0.00021917,2]
[341991316,1731346053661,-500.0,0.00021917,2]
[341991317,1731346053688,-500.0,0.00021917,2]
[341991318,1731346053711,-500.0,0.00021917,2]
[341991319,1731346053733,-500.0,0.00021917,2]
[341991320,1731346053757,-500.0,0.00021917,2]
[341991321,1731346053785,-500.0,0.00021917,2]
[341991322,1731346053810,-500.0,0.00021917,2]
[341991323,1731346053834,-500.0,0.00021917,2]
[341991324,1731346053861,-500.0,0.00021917,2]
[341991325,1731346053884,-500.0,0.00021917,2]
[341991326,1731346053908,-500.0,0.00021917,2]
[341991327,1731346053931,-30.47452735,0.00021917,2]
[341991328,1731346084288,-1169.27083333,0.00020845,2]
[341991329,1731346084311,-3763.72916667,0.00021817,2]
[341991330,1731346087109,179.579471,0.0002067,2]
[341991331,1731346113725,-784.00813835,0.00021817,2]
[341991332,1731346113749,-300.0,0.00021916,2]
[341991333,1731346113774,-300.0,0.00021916,2]
[341991334,1731346113801,-469.52547265,0.00021917,2]
[341991335,1731346113826,-500.0,0.00021917,2]
[341991336,1731346113850,-500.0,0.00021917,2]
[341991337,1731346113879,-500.0,0.00021917,2]
[341991338,1731346113903,-500.0,0.00021917,2]
[341991339,1731346113928,-500.0,0.00021917,2]
[341991340,1731346113951,-500.0,0.00021917,2]
[341991341,1731346113974,-500.0,0.00021917,2]
[341991342,1731346113997,-500.0,0.00021917,2]
[341991343,1731346114020,-500.0,0.00021917,2]
[341991344,1731346114043,-500.0,0.00021917,2]
[341991345,1731346114066,-500.0,0.00021917,2]
[341991346,1731346114089,-500.0,0.00021917,2]
[341991347,1731346114112,-504.97585831,0.00021917,2]
[341991348,1731346114137,-500.0,0.00021917,2]
[341991349,1731346114160,-1000.0,0.00021917,2]
[341991350,1731346114184,-497.69076039,0.00021917,2]
[341991351,1731346114209,-500.0,0.00021917,2]
[341991352,1731346114234,-500.0,0.00021917,2]
[341991353,1731346114257,-500.0,0.00021917,2]
[341991354,1731346114278,-500.0,0.00021917,2]
[341991355,1731346114301,-500.0,0.00021917,2]
[341991356,1731346114323,-500.0,0.00021917,2]
[341991357,1731346114345,-500.0,0.00021917,2]
[341991358,1731346114367,-500.0,0.00021917,2]
[341991359,1731346114391,-500.0,0.00021917,2]
[341991360,1731346114413,-500.0,0.00021917,2]
[341991361,1731346114436,-597.63961593,0.00021917,2]
[341991362,1731346114457,-500.0,0.00021917,2]
[341991363,1731346114480,-409.14003386,0.00021917,2]
[341991364,1731346114502,-500.0,0.00021917,2]
[341991365,1731346114524,-524.92777058,0.00021917,2]
[341991366,1731346114547,-500.0,0.00021917,2]
[341991367,1731346114571,-500.0,0.00021917,2]
[341991368,1731346114593,-500.0,0.00021917,2]
[341991369,1731346114615,-500.0,0.00021917,2]
[341991370,1731346114639,-500.0,0.00021917,2]
[341991371,1731346114662,-500.0,0.00021917,2]
[341991372,1731346114684,-500.0,0.00021917,2]
[341991373,1731346114705,-158.48421295,0.00021917,2]
[341991374,1731346114728,-500.0,0.00021917,2]
[341991375,1731346114752,-1944.93,0.00021917,2]
[341991376,1731346114774,-500.0,0.00021917,2]
[341991377,1731346114798,-500.0,0.00021917,2]
[341991378,1731346114819,-500.0,0.00021917,2]
[341991379,1731346114842,-500.0,0.00021917,2]
[341991380,1731346114865,-500.0,0.00021917,2]
[341991381,1731346114889,-423.54159466,0.00021917,2]
[341991382,1731346114911,-500.0,0.00021917,2]
[341991383,1731346114933,-500.0,0.00021917,2]
[341991384,1731346114958,-5287.13654232,0.00021917,2]
[341991387,1731346189941,156.83689687,0.00020745,2]
[341991431,1731346233649,-1169.27083333,0.00020845,2]
[341991432,1731346233658,-178.650925,0.00020944,2]
[341991433,1731346233668,-200.3595,0.00021853,2]
[341991434,1731346233677,-300.0,0.00021916,2]
[341991435,1731346233689,-300.0,0.00021916,2]
[341991436,1731346233698,-596.57965753,0.00021917,2]
[341991437,1731346233707,-500.0,0.00021917,2]
[341991438,1731346233717,-500.0,0.00021917,2]
[341991439,1731346233727,-500.0,0.00021917,2]
[341991440,1731346233737,-500.71423049,0.00021917,2]
[341991441,1731346233746,-500.0,0.00021917,2]
[341991442,1731346233756,-479.24809625,0.00021917,2]
[341991443,1731346233765,-500.0,0.00021917,2]
[341991444,1731346233774,-360.5767574,0.00021917,2]
[341991515,1731346240468,-24.33551739,0.00021917,2]
[341991528,1731346240577,-115.08772521,0.00021917,2]
[341991530,1731346240588,-500.0,0.00021917,2]
[341991532,1731346240597,-230.93227479,0.00021917,2]
[341991582,1731346243151,-269.06772521,0.00021917,2]
[341991583,1731346243160,-154.55768287,0.00021917,2]
[341991584,1731346243880,-358.09334793,0.00021917,2]
[341991585,1731346243890,-500.0,0.00021917,2]
[341991586,1731346243900,-503.72256543,0.00021917,2]
[341991587,1731346243910,-500.0,0.00021917,2]
[341991588,1731346243919,-429.87334161,0.00021917,2]
[341991590,1731346243928,-500.0,0.00021917,2]
[341991591,1731346243937,-406.89812868,0.00021917,2]
[341991593,1731346243949,-164.33130783,0.00021917,2]
[341991596,1731346243958,-500.0,0.00021917,2]
[341991599,1731346243967,-500.0,0.00021917,2]
[341991601,1731346243976,-502.01885031,0.00021917,2]
[341991603,1731346243986,-500.0,0.00021917,2]
[341991605,1731346243995,-500.0,0.00021917,2]
[341991607,1731346244005,-502.05136771,0.00021917,2]
[341991609,1731346244015,-500.0,0.00021917,2]
[341991610,1731346244024,-295.37666053,0.00021917,2]
[341991611,1731346244033,-500.0,0.00021917,2]
[341991612,1731346244042,-500.0,0.00021917,2]
[341991613,1731346244052,-500.0,0.00021917,2]
[341991614,1731346244061,-500.0,0.00021917,2]
[341991615,1731346244070,-215.0,0.00021917,2]
[341991616,1731346244080,-500.0,0.00021917,2]
[341991617,1731346244089,-500.0,0.00021917,2]
[341991618,1731346244098,-500.0,0.00021917,2]
[341991619,1731346244107,-322.63442997,0.00021917,2]
[341991630,1731346265173,24900.0,0.0002066,2]
[341991638,1731346560755,167.662955,0.00013973,2]
[341991640,1731346834893,200.0,0.00027,120]
[341991641,1731346886894,174.131307,0.00020611,2]
[341991642,1731346957522,500.0,0.00027,60]
[341991643,1731347005355,1169.27083333,0.00020845,2]
[341991657,1731347317554,1169.27083333,0.00020845,2]
[341991660,1731347338509,167.662955,0.00013973,2]
[341991662,1731347398614,4996.6399108,0.0002063,2]
[341991700,1731347432225,-1169.27083333,0.00020845,2]
[341991702,1731347432235,-451.788334,0.00020869,2]
[341991704,1731347432244,-300.0,0.00020888,2]
[341991706,1731347432254,-300.0,0.00020888,2]
[341991708,1731347432264,-24900.0,0.00020889,2]
[341991710,1731347432273,-451.788334,0.00021554,2]
[341991712,1731347432284,-4933.4268936,0.00021707,2]
[341991714,1731347432293,-1379.72452007,0.00021717,2]
[341992499,1731347443405,-3090.72777242,0.00021717,2]
[341992501,1731347443414,-172.472,0.00021804,2]
[341992503,1731347443423,-517.83421038,0.00021817,2]
[341992505,1731347443432,-709.21,0.00021907,3]
[341992507,1731347443441,-354.61,0.00021907,3]
[341992509,1731347443450,-584.68845548,0.00021916,2]
[341992511,1731347443459,-198.6875626,0.00021916,2]
[341992513,1731347443469,-618.29919189,0.00021916,2]
[341992515,1731347443477,-501.69486507,0.00021917,2]
[341992517,1731347443487,-500.0,0.00021917,2]
[341992519,1731347443496,-528.74952691,0.00021917,2]
[341992521,1731347443505,-500.0,0.00021917,2]
[341992523,1731347443515,-398.467096,0.00021917,2]
[341992525,1731347443524,-500.0,0.00021917,2]
[341992527,1731347443533,-500.0,0.00021917,2]
[341992529,1731347443542,-500.0,0.00021917,2]
[341992531,1731347443551,-500.0,0.00021917,2]
[341992533,1731347443560,-500.0,0.00021917,2]
[341992535,1731347443569,-529.20196958,0.00021917,2]
[341992537,1731347443580,-500.0,0.00021917,2]
[341992539,1731347443589,-500.0,0.00021917,2]
[341992541,1731347443598,-500.0,0.00021917,2]
[341992543,1731347443607,-500.0,0.00021917,2]
[341992545,1731347443616,-500.0,0.00021917,2]
[341992547,1731347443626,-500.0,0.00021917,2]
[341992549,1731347443635,-633.79376026,0.00021917,2]
[341992551,1731347443644,-500.0,0.00021917,2]
[341992554,1731347443653,-512.25000857,0.00021917,2]
[341992555,1731347443663,-500.0,0.00021917,2]
[341992557,1731347443672,-508.94,0.00021917,2]
[341992559,1731347443682,-500.0,0.00021917,2]
[341992561,1731347443691,-1041.42,0.00021917,2]
[341992563,1731347443700,-196.39653005,0.00021917,2]
[341992566,1731347443709,-388.52984322,0.00021917,2]
[341992568,1731347443718,-500.0,0.00021917,2]
[341992570,1731347443728,-516.48707083,0.00021917,2]
[341992571,1731347443737,-500.0,0.00021917,2]
[341992573,1731347443746,-170.08277275,0.00021917,2]
[341992598,1731347443961,-329.91722725,0.00021917,2]
[341992600,1731347443971,-500.0,0.00021917,2]
[341992602,1731347443980,-500.0,0.00021917,2]
[341992604,1731347443989,-500.0,0.00021917,2]
[341992606,1731347443998,-500.0,0.00021917,2]
[341992608,1731347444008,-322.43729642,0.00021917,2]
[341992749,1731347446441,-1169.27083333,0.00020888,2]
[341992750,1731347446450,-282.39398169,0.00021917,2]
[341992751,1731347446463,-500.0,0.00021917,2]
[341992752,1731347446472,-500.0,0.00021917,2]
[341992753,1731347446481,-500.0,0.00021917,2]
[341992754,1731347446490,-500.0,0.00021917,2]
[341992755,1731347446499,-500.0,0.00021917,2]
[341992756,1731347446508,-500.0,0.00021917,2]
[341992757,1731347446517,-532.36,0.00021917,2]
[341992758,1731347446526,-500.0,0.00021917,2]
[341992760,1731347446535,-500.0,0.00021917,2]
[341992762,1731347446545,-500.0,0.00021917,2]
[341992763,1731347446554,-500.0,0.00021917,2]
[341992765,1731347446564,-1232.8,0.00021917,2]
[341992767,1731347446574,-500.0,0.00021917,2]
[341992768,1731347446586,-500.0,0.00021917,2]
[341992770,1731347446596,-641.23754861,0.00021917,2]
[341992771,1731347446606,-500.0,0.00021917,2]
[341992772,1731347446617,-500.0,0.00021917,2]
[341992773,1731347446627,-500.0,0.00021917,2]
[341992774,1731347446637,-500.0,0.00021917,2]
[341992775,1731347446646,-2336.0,0.00021917,2]
[341992776,1731347446656,-502.02630326,0.00021917,2]
[341992777,1731347446666,-500.0,0.00021917,2]
[341992778,1731347446676,-500.0,0.00021917,2]
[341992779,1731347446687,-885.35,0.00021917,2]
[341992780,1731347446697,-500.0,0.00021917,2]
[341992781,1731347446707,-500.0,0.00021917,2]
[341992783,1731347446716,-500.0,0.00021917,2]
[341992785,1731347446726,-170.70132016,0.00021917,2]
[341992787,1731347446735,-500.0,0.00021917,2]
[341992789,1731347446745,-520.8405576,0.00021917,2]
[341992791,1731347446754,-500.0,0.00021917,2]
[341992793,1731347446764,-220.5931756,0.00021917,2]
[341992795,1731347446773,-500.46874758,0.00021917,2]
[341992796,1731347446783,-547.00643213,0.00021917,2]
[341992798,1731347446793,-500.0,0.00021917,2]
[341992799,1731347446803,-553.4,0.00021917,2]
[341992800,1731347446814,-384.65683037,0.00021917,2]
[341992801,1731347446824,-500.0,0.00021917,2]
[341992802,1731347446834,-505.71069608,0.00021917,2]
[341992803,1731347446844,-500.0,0.00021917,2]
[341992804,1731347446855,-253.45234017,0.00021917,2]
[341992805,1731347446865,-500.0,0.00021917,2]
[341992806,1731347446875,-500.0,0.00021917,2]
[341992807,1731347446885,-500.0,0.00021917,2]
[341992808,1731347446894,-500.0,0.00021917,2]
[341992809,1731347446905,-11100.77,0.00021917,2]
[341992811,1731347446915,-500.0,0.00021917,2]
[341992812,1731347446925,-500.0,0.00021917,2]
[341992814,1731347446935,-500.0,0.00021917,2]
[341992816,1731347446944,-500.0,0.00021917,2]
[341992818,1731347446953,-1022.4,0.00021917,2]
[341992819,1731347446963,-500.0,0.00021917,2]
[341992821,1731347446974,-500.0,0.00021917,2]
[341992822,1731347446984,-602.3,0.00021917,2]
[341992823,1731347446994,-500.0,0.00021917,2]
[341992824,1731347447003,-499.30453794,0.00021917,2]
[341992825,1731347447013,-500.0,0.00021917,2]
[341992826,1731347447022,-500.0,0.00021917,2]
[341992827,1731347447033,-500.0,0.00021917,2]
[341992829,1731347447043,-635.47,0.00021917,2]
[341992831,1731347447052,-500.0,0.00021917,2]
[341992832,1731347447063,-390.72601042,0.00021917,2]
[341992834,1731347447072,-500.0,0.00021917,2]
[341992836,1731347447084,-500.0,0.00021917,2]
[341992838,1731347447099,-115.61428252,0.00021917,2]
[341992861,1731347729534,225.894167,0.00020736,2]
[341992866,1731347954759,-17500.0,0.00022,30]
[341992867,1731348001625,-4526.80596023,0.00022,30]
[341992868,1731348136317,167.662955,0.00013973,2]
[341992869,1731348253282,1169.27083333,0.00020845,2]
[341992870,1731348261255,-1169.27083333,0.00020863,2]
[341992871,1731348261278,-3334.72916667,0.00020894,2]
[341992872,1731348280565,3004.85463757,0.00020845,2]
[341992874,1731348396023,150.56,0.0002249,60]
[341992875,1731348396535,150.534,0.0002311,60]
[341992876,1731348435321,207.222374,0.00020702,2]
[341992877,1731348544307,2403.4934341,0.00020778,2]
[341992885,1731348627548,1169.27083333,0.00020845,2]
[341992918,1731348632436,-844.15560649,0.00020855,2]
[341992921,1731348632448,-325.11522684,0.00020855,2]
[341992923,1731348632457,-201.02604,0.00020931,2]
[341992925,1731348632465,-78.11438358,0.00021035,2]
[341992927,1731348632476,-122.91165642,0.00021035,2]
[341992929,1731348632485,-216.96747708,0.00021617,2]
[341992931,1731348632494,-793.24770736,0.00021694,2]
[341992933,1731348632505,-2372.75346912,0.00021694,2]
[341993041,1731348638643,-1286.99882352,0.00021694,2]
[341993043,1731348638653,-1000.0,0.00021717,2]
[341993045,1731348638663,-300.0,0.00021806,2]
[341993047,1731348638672,-300.0,0.00021806,2]
[341993050,1731348638682,-531.91,0.00021807,3]
[341993052,1731348638696,-265.95,0.00021807,3]
[341993054,1731348638705,-797.89,0.00021807,3]
[341993056,1731348638714,-533.66863901,0.00021816,2]
[341993058,1731348638723,-500.0,0.00021816,2]
[341993060,1731348638731,-512.35776109,0.00021816,2]
[341993062,1731348638740,-611.00815104,0.00021816,2]
[341993064,1731348638749,-611.00815104,0.00021816,2]
[341993066,1731348638759,-611.00815104,0.00021817,2]
[341993068,1731348638768,-389.79230365,0.00021817,2]
[341993070,1731348638777,-611.00815104,0.00021817,2]
[341993072,1731348638786,-230000.0,0.00021817,2]
[341993074,1731348638796,-1444.50760278,0.00021817,2]
[341993076,1731348638805,-611.00815104,0.00021817,2]
[341993078,1731348638814,-3891.74007156,0.00021916,2]
[341993080,1731348638823,-598.99462892,0.00021916,2]
[341993082,1731348638832,-346.01356246,0.00021916,2]
[341993084,1731348638841,-280.86000063,0.00021916,2]
[341993086,1731348638851,-547.87049455,0.00021916,2]
[341993088,1731348638860,-500.0,0.00021916,2]
[341993090,1731348638869,-419.90136817,0.00021916,2]
[341993092,1731348638878,-500.0,0.00021916,2]
[341993094,1731348638887,-500.0,0.00021916,2]
[341993096,1731348638895,-381.31257151,0.00021916,2]
[341993098,1731348638904,-500.0,0.00021916,2]
[341993100,1731348638914,-500.0,0.00021916,2]
[341993102,1731348638923,-151.0,0.00021917,2]
[341993104,1731348638932,-151.0,0.00021917,2]
[341993106,1731348638943,-151.0,0.00021917,2]
[341993108,1731348638952,-151.0,0.00021917,2]
[341993110,1731348638960,-500.0,0.00021917,2]
[341993112,1731348638969,-500.0,0.00021917,2]
[341993114,1731348638978,-477.70867283,0.00021917,2]
[341993116,1731348638988,-500.0,0.00021917,2]
[341993119,1731348638997,-500.0,0.00021917,2]
[341993121,1731348639006,-500.0,0.00021917,2]
[341993123,1731348639015,-524.81446869,0.00021917,2]
[341993125,1731348639024,-151.0,0.00021917,2]
[341993127,1731348639033,-151.0,0.00021917,2]
[341993129,1731348639042,-512.77413179,0.00021917,2]
[341993131,1731348639051,-151.0,0.00021917,2]
[341993133,1731348639060,-151.0,0.00021917,2]
[341993135,1731348639069,-151.0,0.00021917,2]
[341993137,1731348639078,-387.385648,0.00021917,2]
[341993139,1731348639087,-151.0,0.00021917,2]
[341993141,1731348639096,-387.385648,0.00021917,2]
[341993143,1731348639105,-151.0,0.00021917,2]
[341993145,1731348639114,-387.385648,0.00021917,2]
[341993147,1731348639123,-151.0,0.00021917,2]
[341993149,1731348639132,-500.0,0.00021917,2]
[341993151,1731348639141,-387.385648,0.00021917,2]
[341993153,1731348639150,-387.385648,0.00021917,2]
[341993155,1731348639159,-387.385648,0.00021917,2]
[341993157,1731348639168,-501.97682941,0.00021917,2]
[341993159,1731348639177,-151.0,0.00021917,2]
[341993161,1731348639186,-151.0,0.00021917,2]
[341993163,1731348639197,-316.13347583,0.00021917,2]
[341993165,1731348639206,-151.0,0.00021917,2]
[341993167,1731348639215,-151.0,0.00021917,2]
[341993169,1731348639224,-151.0,0.00021917,2]
[341993171,1731348639233,-151.0,0.00021917,2]
[341993173,1731348639242,-500.0,0.00021917,2]
[341993175,1731348639251,-500.0,0.00021917,2]
[341993177,1731348639260,-500.0,0.00021917,2]
[341993179,1731348639269,-423.91307647,0.00021917,2]
[341993181,1731348639279,-151.0,0.00021917,2]
[341993183,1731348639289,-151.0,0.00021917,2]
[341993185,1731348639298,-500.0,0.00021917,2]
[341993188,1731348639307,-500.0,0.00021917,2]
[341993190,1731348639316,-500.0,0.00021917,2]
[341993192,1731348639325,-500.0,0.00021917,2]
[341993194,1731348639334,-151.0,0.00021917,2]
[341993196,1731348639344,-151.0,0.00021917,2]
[341993198,1731348639354,-151.0,0.00021917,2]
[341993200,1731348639364,-151.0,0.00021917,2]
[341993202,1731348639374,-151.0,0.00021917,2]
[341993204,1731348639383,-500.0,0.00021917,2]
[341993206,1731348639393,-151.0,0.00021917,2]
[341993208,1731348639401,-151.0,0.00021917,2]
[341993210,1731348639410,-151.0,0.00021917,2]
[341993212,1731348639419,-151.0,0.00021917,2]
[341993214,1731348639429,-151.0,0.00021917,2]
[341993216,1731348639439,-529.97100649,0.00021917,2]
[341993218,1731348639448,-500.0,0.00021917,2]
[341993220,1731348639458,-564.03504675,0.00021917,2]
[341993222,1731348639468,-151.0,0.00021917,2]
[341993224,1731348639477,-151.0,0.00021917,2]
[341993226,1731348639487,-151.0,0.00021917,2]
[341993228,1731348639495,-151.0,0.00021917,2]
[341993230,1731348639504,-151.0,0.00021917,2]
[341993232,1731348639513,-445.97960126,0.00021917,2]
[341993234,1731348639522,-500.0,0.00021917,2]
[341993236,1731348639531,-562.660634,0.00021917,2]
[341993238,1731348639540,-562.660634,0.00021917,2]
[341993240,1731348639549,-562.660634,0.00021917,2]
[341993242,1731348639557,-562.660634,0.00021917,2]
[341993244,1731348639567,-562.660634,0.00021917,2]
[341993246,1731348639576,-562.660634,0.00021917,2]
[341993248,1731348639592,-1000.0,0.00021917,2]
[341993250,1731348639602,-1000.0,0.00021917,2]
[341993252,1731348639612,-1000.0,0.00021917,2]
[341993254,1731348639621,-1000.0,0.00021917,2]
[341993256,1731348639630,-1000.0,0.00021917,2]
[341993258,1731348639639,-511.63574336,0.00021917,2]
[341993261,1731348639648,-1000.0,0.00021917,2]
[341993263,1731348639657,-1000.0,0.00021917,2]
[341993265,1731348639667,-1000.0,0.00021917,2]
[341993267,1731348639676,-1000.0,0.00021917,2]
[341993269,1731348639686,-1000.0,0.00021917,2]
[341993271,1731348639697,-1000.0,0.00021917,2]
[341993273,1731348639706,-1000.0,0.00021917,2]
[341993275,1731348639715,-1000.0,0.00021917,2]
[341993277,1731348639724,-1000.0,0.00021917,2]
[341993279,1731348639733,-151.0,0.00021917,2]
[341993281,1731348639742,-1000.0,0.00021917,2]
[341993283,1731348639751,-151.0,0.00021917,2]
[341993285,1731348639761,-1000.0,0.00021917,2]
[341993287,1731348639771,-151.0,0.00021917,2]
[341993289,1731348639780,-1000.0,0.00021917,2]
[341993291,1731348639790,-151.0,0.00021917,2]
[341993293,1731348639799,-151.0,0.00021917,2]
[341993295,1731348639808,-1000.0,0.00021917,2]
[341993297,1731348639817,-151.0,0.00021917,2]
[341993299,1731348639826,-1000.0,0.00021917,2]
[341993302,1731348639836,-266.730084,0.00021917,2]
[341993304,1731348639847,-1000.0,0.00021917,2]
[341993306,1731348639857,-1000.0,0.00021917,2]
[341993308,1731348639867,-1000.0,0.00021917,2]
[341993310,1731348639876,-1000.0,0.00021917,2]
[341993312,1731348639885,-1000.0,0.00021917,2]
[341993314,1731348639894,-1000.0,0.00021917,2]
[341993316,1731348639903,-1000.0,0.00021917,2]
[341993318,1731348639912,-1000.0,0.00021917,2]
[341993320,1731348639921,-1000.0,0.00021917,2]
[341993322,1731348639929,-1000.0,0.00021917,2]
[341993324,1731348639939,-569.95341095,0.00021917,2]
[341993326,1731348639948,-500.0,0.00021917,2]
[341993328,1731348639957,-514.67752148,0.00021917,2]
[341993330,1731348639966,-500.0,0.00021917,2]
[341993332,1731348639975,-500.0,0.00021917,2]
[341993334,1731348639984,-500.0,0.00021917,2]
[341993337,1731348639993,-500.0,0.00021917,2]
[341993339,1731348640002,-512.20158319,0.00021917,2]
[341993341,1731348640011,-500.0,0.00021917,2]
[341993343,1731348640020,-500.0,0.00021917,2]
[341993345,1731348640029,-347.54225107,0.00021917,2]
[341993347,1731348640038,-500.0,0.00021917,2]
[341993349,1731348640048,-500.0,0.00021917,2]
[341993351,1731348640056,-500.0,0.00021917,2]
[341993353,1731348640066,-500.0,0.00021917,2]
[341993355,1731348640075,-500.0,0.00021917,2]
[341993357,1731348640084,-500.0,0.00021917,2]
[341993359,1731348640093,-500.0,0.00021917,2]
[341993361,1731348640103,-500.0,0.00021917,2]
[341993363,1731348640112,-1500.64,0.00021917,2]
[341993365,1731348640121,-500.0,0.00021917,2]
[341993367,1731348640130,-504.24712405,0.00021917,2]
[341993369,1731348640139,-500.0,0.00021917,2]
[341993371,1731348640148,-151.0,0.00021917,2]
[341993373,1731348640157,-500.0,0.00021917,2]
[341993376,1731348640166,-500.0,0.00021917,2]
[341993378,1731348640175,-500.0,0.00021917,2]
[341993380,1731348640184,-500.0,0.00021917,2]
[341993382,1731348640196,-527.89388226,0.00021917,2]
[341993383,1731348640205,-500.0,0.00021917,2]
[341993385,1731348640214,-500.0,0.00021917,2]
[341993388,1731348640223,-500.0,0.00021917,2]
[341993390,1731348640231,-500.0,0.00021917,2]
[341993392,1731348640241,-444.100134,0.00021917,2]
[341993394,1731348640249,-626.03,0.00021917,2]
[341993396,1731348640259,-444.100134,0.00021917,2]
[341993398,1731348640268,-444.100134,0.00021917,2]
[341993400,1731348640277,-444.100134,0.00021917,2]
[341993402,1731348640286,-444.100134,0.00021917,2]
[341993404,1731348640295,-500.0,0.00021917,2]
[341993406,1731348640304,-500.0,0.00021917,2]
[341993408,1731348640313,-444.100134,0.00021917,2]
[341993410,1731348640323,-444.100134,0.00021917,2]
[341993412,1731348640332,-549.38981168,0.00021917,2]
[341993414,1731348640340,-612.15162885,0.00021917,2]
[341993416,1731348640350,-444.100134,0.00021917,2]
[341993418,1731348640359,-444.100134,0.00021917,2]
[341993420,1731348640368,-444.100134,0.00021917,2]
[341993422,1731348640377,-444.100134,0.00021917,2]
[341993424,1731348640386,-450.0,0.00021917,2]
[341993426,1731348640395,-444.100134,0.00021917,2]
[341993428,1731348640404,-444.100134,0.00021917,2]
[341993430,1731348640413,-444.100134,0.00021917,2]
[341993432,1731348640422,-1131.51436,0.00021917,2]
[341993434,1731348640430,-500.0,0.00021917,2]
[341993436,1731348640441,-1131.51436,0.00021917,2]
[341993438,1731348640450,-1131.51436,0.00021917,2]
[341993440,1731348640459,-1131.51436,0.00021917,2]
[341993442,1731348640468,-800.23,0.00021917,2]
[341993444,1731348640478,-500.0,0.00021917,2]
[341993446,1731348640487,-1131.51436,0.00021917,2]
[341993448,1731348640497,-1131.51436,0.00021917,2]
[341993450,1731348640506,-1131.51436,0.00021917,2]
[341993452,1731348640515,-1131.51436,0.00021917,2]
[341993454,1731348640525,-500.0,0.00021917,2]
[341993457,1731348640534,-500.0,0.00021917,2]
[341993459,1731348640543,-500.0,0.00021917,2]
[341993461,1731348640552,-1630.31,0.00021917,2]
[341993463,1731348640561,-500.0,0.00021917,2]
[341993465,1731348640570,-500.0,0.00021917,2]